bitfinex/quotes_ETHUSD_20260131
["timestamp","ask_amount","ask_price","bid_price","bid_amount"]
[1769852964698,0.94428706,2647.5,2646.7,13.04144299]
[1769852965633,13.1744524,2647.5,2646.7,13.04144299]
[1769852968016,0.94432273,2647.4,2646.7,13.04144299]
[1769852969912,13.1744524,2647.4,2646.7,0.0011]
[1769852970114,14.49189764,2647.4,2646.7,0.0011]
[1769852970889,14.49189764,2647.4,2646.5,0.7921]
[1769852972117,13.1744524,2647.2,2646.5,0.7921]
[1769852972720,13.1744524,2647.2,2646.9,0.0011]
[1769852973097,13.1744524,2647.2,2646.5,0.7921]
[1769852973311,13.1744524,2647.0,2646.6,0.0011]
[1769852976399,13.1744524,2647.0,2646.4,0.0011]
[1769852978525,13.1744524,2647.0,2646.3,0.0011]
[1769852978697,13.56849837,2646.9,2645.8,13.04034299]
[1769852979108,13.56849837,2646.9,2645.9,13.48676684]
[1769852979308,15.44558163,2646.8,2645.9,13.48676684]
[1769852979924,0.94457248,2646.7,2645.9,13.48676684]
[1769852980327,13.98051348,2646.7,2645.9,13.48676684]
[1769852981334,0.94457248,2646.7,2645.9,13.48676684]
[1769852985136,0.94457248,2646.7,2646.1,0.0011]
[1769852989744,3.77800445,2647.2,2646.1,0.0011]
[1769852989745,13.035941,2647.7,2646.6,13.35920438]
[1769852990508,16.81312865,2647.5,2646.6,13.35920438]
[1769852994310,3.77718765,2647.5,2646.6,13.35920438]
[1769852995549,0.94425139,2647.6,2646.6,13.35920438]
[1769852995750,2.72007119,2647.6,2646.8,13.35920438]
[1769852997376,2.72007119,2647.6,2646.8,13.36030438]
[1769852997672,0.001,2647.3,2646.8,13.36030438]
[1769852998583,0.001,2647.3,2646.8,0.0011]
[1769853000571,0.001,2647.3,2646.8,13.36030438]
[1769853001376,0.94430694,2647.5,2646.9,13.35920438]
[1769853002782,0.001,2647.8,2646.9,13.35920438]
[1769853003480,0.001,2647.8,2647.1,13.35920438]
[1769853006175,0.001,2647.8,2647.1,14.30362005]
[1769853006583,0.001,2647.8,2647.3,13.35920438]
[1769853006807,0.001,2647.8,2647.5,13.2681793]
[1769853007166,13.036941,2648.4,2647.3,13.2681793]
[1769853007690,0.94400181,2648.3,2647.3,13.2681793]
[1769853007896,3.09729754,2648.3,2647.5,13.2681793]
[1769853008097,0.94400181,2648.3,2647.5,13.2681793]
[1769853008399,13.0397764,2648.2,2647.2,13.28325771]
[1769853009602,13.0397764,2648.2,2647.4,13.2681793]
[1769853012604,16.81678364,2648.4,2647.4,14.21249657]
[1769853012768,3.77700724,2648.4,2647.5,13.2681793]
[1769853012967,0.94400181,2648.3,2647.5,13.2681793]
[1769853014103,0.94400181,2648.3,2647.3,0.0011]
[1769853014104,6.14633605,2648.3,2647.3,0.0011]
[1769853014322,13.0397764,2647.9,2647.3,0.0011]
[1769853014993,13.0397764,2647.7,2647.3,0.0011]
[1769853015369,0.94418007,2647.8,2647.3,0.0011]
[1769853016382,3.77672029,2647.9,2647.3,0.0011]
[1769853017277,14.03211073,2648.2,2647.3,13.2692793]
[1769853017501,13.0397764,2648.2,2647.3,13.2692793]
[1769853017999,13.0407764,2648.4,2647.5,13.2681793]
[1769853018231,3.77629243,2648.3,2647.5,13.2681793]
[1769853018573,0.001,2648.4,2647.5,13.2681793]
[1769853019518,0.001,2648.4,2647.7,13.2681793]
[1769853021411,0.001,2648.4,2647.9,13.2681793]
[1769853022077,0.001,2648.2,2647.9,13.2681793]
[1769853023516,0.94382361,2648.8,2647.9,14.21232199]
[1769853023712,0.94381496,2648.9,2648.0,13.28325771]
[1769853025185,0.94381496,2648.9,2648.3,13.2681793]
[1769853025386,3.7750621,2649.0,2648.0,14.22734063]
[1769853025695,16.8148385,2649.0,2648.0,14.21226222]
[1769853025880,16.8148385,2649.0,2648.1,13.2681793]
[1769853027814,3.7750621,2649.0,2648.1,14.21222879]
[1769853028015,3.7750621,2649.0,2648.3,13.2681793]
[1769853028820,3.77438286,2649.5,2648.7,13.2681793]
[1769853029118,4.67203613,2649.5,2648.7,13.2681793]
[1769853029813,17.71181253,2649.5,2648.7,13.2681793]
[1769853030216,16.81415926,2649.5,2648.7,13.2681793]
[1769853032724,3.77438286,2649.5,2648.7,13.2681793]
[1769853032904,16.81415926,2649.5,2648.7,13.2681793]
[1769853034924,0.94346743,2649.8,2648.8,0.01507841]
[1769853035121,0.94346743,2649.8,2648.9,13.2681793]
[1769853035428,0.001,2649.3,2648.9,13.2681793]
[1769853036305,0.94346743,2649.8,2648.9,13.2681793]
[1769853036701,3.77384482,2649.9,2649.1,13.76034546]
[1769853037425,3.77384482,2649.9,2649.0,14.70409397]
[1769853037618,0.94343182,2649.9,2649.1,14.2339003]
[1769853039032,0.94343182,2649.9,2649.1,15.1776103]
[1769853039505,13.30333269,2650.5,2649.3,12.80786834]
[1769853039704,13.30333269,2650.5,2649.5,12.80786834]
[1769853039926,0.94314709,2650.7,2649.7,12.80786834]
[1769853040138,0.94314709,2650.7,2649.8,12.82294675]
[1769853040312,0.94314709,2650.7,2650.0,12.80786834]
[1769853041914,14.24647978,2650.7,2649.9,0.47355484]
[1769853042316,0.94314709,2650.7,2650.1,12.80786834]
[1769853042738,5.19117165,2651.4,2650.6,12.80786834]
[1769853042739,0.94289809,2651.4,2650.6,12.80786834]
[1769853042905,0.94289809,2651.4,2650.7,13.24059869]
[1769853044235,13.30333269,2651.3,2649.9,13.7512721]
[1769853044440,13.30333269,2651.0,2649.8,0.95852165]
[1769853044643,13.30333269,2651.0,2649.8,13.76638999]
[1769853044942,13.30333269,2651.0,2649.8,12.80786834]
[1769853045303,0.94307593,2650.9,2649.9,12.82294675]
[1769853045525,0.94307593,2650.9,2650.1,12.82294675]
[1769853046515,14.24640862,2650.9,2650.1,0.01507841]
[1769853046720,14.24640862,2650.9,2649.7,0.95855824]
[1769853047012,14.24640862,2650.9,2649.8,12.82294675]
[1769853047220,0.94314709,2650.7,2649.8,12.82294675]
[1769853047540,0.94314709,2650.7,2649.8,13.76641127]
[1769853048841,14.24647978,2650.7,2649.8,12.82294675]
[1769853049141,14.24647978,2650.7,2649.8,12.80786834]
[1769853049341,16.60583256,2650.7,2649.8,12.80786834]
[1769853050022,3.30249987,2650.7,2649.9,12.82294675]
[1769853050221,0.94314709,2650.7,2649.9,12.82294675]
[1769853050724,0.94314709,2650.7,2649.9,12.80786834]
[1769853050937,14.24647978,2650.7,2649.7,13.75134856]
[1769853051244,16.0483866,2650.7,2649.8,12.80786834]
[1769853051411,2.74505391,2650.7,2649.8,13.75133185]
[1769853053269,16.0483866,2650.7,2649.3,12.82294675]
[1769853053543,13.30333269,2650.3,2649.0,13.76668001]
[1769853054534,13.30333269,2650.3,2649.1,0.94480751]
[1769853054724,13.30333269,2650.3,2649.1,13.75267585]
[1769853055241,13.30333269,2650.3,2649.2,0.01507841]
[1769853055444,14.24665772,2650.2,2649.2,0.95875616]
[1769853055614,0.94331541,2650.3,2649.7,0.01507841]
[1769853055814,0.94331541,2650.3,2649.7,12.82294675]
[1769853056042,0.94331541,2650.3,2649.7,12.80786834]
[1769853056541,0.9432734,2650.4,2649.8,12.82294675]
[1769853056718,0.94318267,2650.6,2649.8,12.82294675]
[1769853057543,3.77242182,2650.9,2649.8,12.82294675]
[1769853057744,3.77242182,2650.9,2649.8,13.76641315]
[1769853058355,1.80187949,2650.8,2649.8,13.75133474]
[1769853058517,1.80187949,2650.8,2650.0,12.80786834]
[1769853059443,1.80187949,2650.8,2650.0,12.80896834]
[1769853059655,14.24647978,2650.7,2649.9,0.86456609]
[1769853059855,14.24647978,2650.7,2648.8,12.80786834]
[1769853059856,13.30333269,2650.5,2648.3,0.01507841]
[1769853060026,1.98208623,2650.6,2648.2,12.80786834]
[1769853060027,13.30333269,2649.8,2648.2,12.80786834]
[1769853060228,13.30333269,2649.6,2648.2,12.80786834]
[1769853060417,13.30333269,2649.6,2647.9,0.94412729]
[1769853060418,13.30333269,2649.4,2647.9,12.80786834]
[1769853060613,13.30333269,2649.4,2648.7,0.0011]
[1769853060916,13.30333269,2649.2,2647.9,12.80786834]
[1769853061426,13.30333269,2649.2,2648.0,0.01507841]
[1769853061629,13.30333269,2649.2,2648.0,12.82294675]
[1769853062638,13.30333269,2649.5,2648.0,12.82294675]
[1769853063644,0.94360987,2649.4,2648.0,13.76704706]
[1769853063844,0.94360987,2649.4,2648.2,12.82294675]
[1769853063845,2.27394314,2649.4,2648.2,12.82294675]
[1769853064166,2.27394314,2649.4,2648.4,12.82294675]
[1769853066768,15.57727583,2649.4,2648.2,0.01507841]
[1769853067965,15.57727583,2649.4,2648.2,12.785246]
[1769853068264,1.93517153,2649.3,2648.2,12.785246]
[1769853069363,1.93517153,2649.3,2648.4,0.01507841]
[1769853070974,1.93517153,2649.3,2648.4,12.785246]
[1769853071476,15.19767189,2649.3,2648.1,12.77016759]
[1769853071682,15.19767189,2649.3,2648.0,0.01507841]
[1769853071842,13.26250036,2649.1,2647.9,12.77016759]
[1769853072041,13.26250036,2649.1,2647.8,0.0011]
[1769853072634,13.26250036,2649.1,2648.6,0.0011]
[1769853082973,0.001,2649.2,2648.6,0.0011]
[1769853083276,13.26350036,2649.2,2648.6,0.0011]
[1769853083484,1.32635004,2649.1,2648.6,0.0011]
[1769853083685,13.26250036,2649.1,2648.6,0.0011]
[1769853083884,17.03750979,2649.1,2648.6,0.0011]
[1769853084199,17.03750979,2649.1,2648.4,0.0011]
[1769853085753,17.03750979,2649.1,2648.6,0.0011]
[1769853085955,0.001,2648.9,2648.6,0.0011]
[1769853092266,13.26250036,2648.6,2647.8,0.0011]
[1769853092590,13.26250036,2648.4,2647.8,0.0011]
[1769853093615,0.94400181,2648.3,2647.8,0.0011]
[1769853093897,0.94400181,2648.3,2647.8,12.77126759]
[1769853094100,3.77600724,2648.4,2647.9,12.77016759]
[1769853094276,3.77541757,2648.8,2647.9,12.785246]
[1769853094478,3.77541757,2648.8,2648.0,12.77016759]
[1769853095012,3.77541757,2648.8,2647.9,0.01507841]
[1769853095193,3.77541757,2648.8,2647.8,0.0011]
[1769853095194,17.03791793,2648.8,2647.8,0.0011]
[1769853095400,13.26250036,2648.7,2647.8,0.0011]
[1769853095802,13.26250036,2648.7,2647.8,12.77126759]
[1769853098422,13.26250036,2648.7,2648.0,0.0011]
[1769853110752,0.001,2648.5,2648.0,0.0011]
[1769853111549,0.001,2648.5,2648.0,13.36919418]
[1769853111716,0.001,2648.9,2648.1,13.36809418]
[1769853122259,13.74815451,2648.7,2648.0,0.0011]
[1769853122827,5.19452744,2648.8,2647.3,13.36919418]
[1769853122828,13.74815451,2648.4,2647.3,13.36919418]
[1769853123028,13.74815451,2648.1,2647.3,0.0011]
[1769853125553,13.74815451,2647.8,2647.3,0.0011]
[1769853126148,13.74815451,2647.8,2647.0,0.0011]
[1769853127447,13.96260104,2648.0,2647.0,13.21963296]
[1769853130898,0.1024,2648.5,2647.4,13.21853296]
[1769853131051,13.96260104,2648.4,2647.4,13.21853296]
[1769853134363,13.96260104,2648.4,2647.0,0.0011]
[1769853134785,13.96260104,2648.4,2647.0,14.17917099]
[1769853135090,13.96260104,2648.2,2647.2,13.21853296]
[1769853135565,13.96360104,2648.2,2647.2,13.21853296]
[1769853142599,0.001,2648.2,2647.2,13.21853296]
[1769853142895,0.001,2648.2,2647.4,13.21853296]
[1769853144999,13.96260104,2648.1,2647.1,13.21853296]
[1769853146204,14.9067098,2648.0,2647.1,13.21853296]
[1769853147198,14.9077098,2648.0,2647.1,13.21853296]
[1769853149709,0.94510876,2648.0,2647.2,13.23361137]
[1769853150207,0.001,2648.0,2647.2,13.23361137]
[1769853150410,0.001,2648.0,2647.3,13.21853296]
[1769853151312,0.001,2648.0,2647.5,13.21853296]
[1769853151612,0.9440731,2648.1,2647.6,13.21853296]
[1769853153513,0.001,2648.2,2647.6,13.21853296]
[1769853153813,0.001,2648.2,2647.7,0.01507841]
[1769853154024,0.001,2648.2,2647.8,13.21853296]
[1769853158725,0.001,2648.0,2647.8,13.21853296]
[1769853160426,0.001,2648.0,2647.4,0.9443055]
[1769853160605,0.001,2648.0,2647.5,13.76868106]
[1769853166538,0.001,2648.7,2648.2,13.76868106]
[1769853166714,0.001,2648.7,2648.4,13.76868106]
[1769853166910,0.001,2648.7,2648.4,14.71264231]
[1769853167314,0.001,2648.7,2648.2,0.94401271]
[1769853167526,0.001,2648.7,2648.2,0.94403517]
[1769853168815,0.001,2648.7,2648.2,0.95911358]
[1769853169239,0.001,2648.7,2648.2,14.72779464]
[1769853169434,1.39720208,2649.1,2648.3,13.76868106]
[1769853170626,0.001,2648.5,2648.3,13.76868106]
[1769853170949,0.001,2648.5,2648.4,14.71264722]
[1769853171311,0.45347919,2649.1,2648.5,13.76868106]
[1769853176238,0.45347919,2649.1,2648.5,14.71258982]
[1769853179645,0.45347919,2649.1,2648.5,13.76868106]
[1769853179849,14.10926338,2649.1,2648.3,14.71266491]
[1769853180247,14.10926338,2649.1,2648.2,3.87]
[1769853180548,15.05299289,2649.1,2648.2,3.87]
[1769853180741,15.05299289,2649.1,2648.2,4.81403487]
[1769853181454,15.05299289,2649.1,2648.2,4.82911328]
[1769853181942,15.05299289,2649.1,2648.2,18.59779434]
[1769853182471,15.05299289,2649.1,2648.6,0.0011]
[1769853182962,0.001,2648.9,2648.6,0.0011]
[1769853195884,0.001,2648.9,2648.8,0.0011]
[1769853197992,5.19556216,2649.6,2648.8,0.0011]
[1769853197993,13.85787586,2649.9,2648.9,13.18950698]
[1769853198160,13.67106571,2649.9,2649.0,13.18950698]
[1769853198751,0.94346743,2649.8,2649.0,13.18950698]
[1769853202081,3.77335809,2650.2,2649.0,13.18950698]
[1769853202082,13.85787586,2650.0,2649.0,13.18950698]
[1769853203113,13.85787586,2650.0,2649.0,14.13325849]
[1769853203314,13.85787586,2650.0,2649.1,13.18950698]
[1769853203512,13.85787586,2650.0,2649.2,13.20458539]
[1769853204885,13.85787586,2650.5,2649.2,14.14826263]
[1769853205284,14.80109412,2650.5,2649.2,14.14826263]
[1769853206420,14.80109412,2650.5,2649.5,13.18950698]
[1769853206715,14.80109412,2650.5,2649.7,13.18950698]
[1769853207789,13.85787586,2650.7,2649.7,13.18950698]
[1769853207989,13.85787586,2650.7,2649.5,13.18950698]
[1769853208208,13.85787586,2650.7,2649.6,13.20458539]
[1769853208403,0.94318267,2650.6,2649.6,14.14809859]
[1769853208608,14.80105853,2650.6,2649.7,13.18950698]
[1769853210393,0.001,2650.4,2649.7,14.1329935]
[1769853210891,0.001,2650.4,2649.9,13.18950698]
[1769853213841,13.85787586,2650.9,2650.1,13.18950698]
[1769853214537,13.85787586,2651.1,2650.1,13.18950698]
[1769853214711,0.001,2651.2,2650.1,13.18950698]
[1769853215037,13.85787586,2651.1,2650.1,13.18950698]
[1769853218656,13.85787586,2651.1,2650.1,14.13286042]
[1769853218837,13.85787586,2651.1,2650.2,13.35383208]
[1769853219241,14.80088065,2651.1,2650.2,13.35383208]
[1769853219813,0.94300479,2651.1,2650.2,13.35383208]
[1769853220013,3.77301916,2651.2,2650.4,13.87083573]
[1769853220014,0.94399042,2651.2,2650.4,13.87083573]
[1769853220218,0.94399042,2651.2,2650.5,13.87083573]
[1769853220745,0.001,2651.2,2650.5,13.87083573]
[1769853223345,12.91364391,2651.1,2650.1,3.87]
[1769853223945,12.91364391,2651.1,2650.3,0.0011]
[1769853224133,12.91464391,2650.9,2650.3,0.0011]
[1769853225442,0.94311151,2650.8,2650.3,0.0011]
[1769853226954,12.91364391,2650.7,2649.5,0.01507841]
[1769853227248,12.91364391,2650.5,2649.4,15.62049521]
[1769853227419,12.91364391,2650.3,2649.4,15.62049521]
[1769853230045,12.91364391,2650.1,2649.4,0.94358107]
[1769853230245,0.94332503,2650.2,2649.4,13.88591414]
[1769853230745,13.85696894,2650.2,2649.4,13.88591414]
[1769853231256,13.85696894,2650.2,2649.4,14.8295181]
[1769853231553,0.94330727,2650.3,2649.6,13.88591414]
[1769853231759,0.94330727,2650.3,2649.8,0.01507841]
[1769853232128,0.94321826,2650.5,2649.8,0.01507841]
[1769853232329,13.85675542,2650.8,2650.0,13.88591414]
[1769853232824,0.94311151,2650.8,2650.0,13.88591414]
[1769853236434,3.7733473,2650.9,2650.0,13.88591414]
[1769853237529,0.001,2650.6,2650.0,13.88591414]
[1769853237730,0.001,2650.6,2650.1,13.87083573]
[1769853243181,0.001,2650.6,2650.2,0.01507841]
[1769853243365,0.94300479,2651.1,2650.2,0.01507841]
[1769853243682,12.91364391,2651.0,2650.2,0.01507841]
[1769853246286,0.94307593,2650.9,2650.2,0.01507841]
[1769853248590,12.92305334,2650.9,2650.2,0.01507841]
[1769853250485,12.92305334,2650.9,2650.4,0.0011]
[1769853250666,0.94311151,2650.8,2650.4,0.0011]
[1769853250868,13.86616485,2650.8,2650.4,0.0011]
[1769853255790,12.92305334,2651.0,2650.4,0.0011]
[1769853257886,0.94307593,2650.9,2650.4,0.0011]
[1769853259792,0.94300479,2651.1,2650.4,12.76135464]
[1769853259972,0.94300479,2651.1,2650.5,12.77533305]
[1769853260176,3.77177731,2651.3,2650.5,12.77533305]
[1769853260177,0.94299259,2651.2,2650.5,12.77533305]
[1769853261699,12.92305334,2651.1,2650.5,0.01507841]
[1769853261906,12.92305334,2650.9,2650.4,0.0011]
[1769853263701,0.94289809,2651.4,2650.7,0.01507841]
[1769853263916,16.6956457,2651.5,2650.7,0.01507841]
[1769853263917,0.001,2651.5,2651.0,12.76025464]
[1769853265289,0.001,2651.5,2650.8,12.76025464]
[1769853266079,0.94386253,2651.5,2650.8,12.76025464]
[1769853266508,0.94386253,2651.5,2650.8,13.70336103]
[1769853266509,0.001,2651.5,2650.8,13.70336103]
[1769853266879,0.001,2651.5,2651.0,12.76025464]
[1769853267181,0.94278289,2651.8,2651.2,12.76025464]
[1769853268012,12.92305334,2651.7,2650.4,0.9443331]
[1769853268199,12.92305334,2651.7,2650.4,0.0011]
[1769853268711,12.92305334,2651.4,2650.4,0.0011]
[1769853270086,12.92305334,2651.2,2650.4,0.0011]
[1769853270509,12.92305334,2651.2,2650.1,0.0011]
[1769853270784,6.12915524,2651.3,2650.1,0.0011]
[1769853270785,12.92305334,2651.0,2650.1,0.0011]
[1769853271619,12.92305334,2651.0,2650.1,12.76135464]
[1769853272719,3.77173462,2651.4,2650.1,13.70470771]
[1769853272912,13.86598699,2651.3,2650.3,12.76025464]
[1769853273221,12.92305334,2651.9,2650.7,12.76025464]
[1769853273421,12.92305334,2651.9,2650.9,12.76025464]
[1769853273622,13.86566701,2652.2,2651.1,12.76025464]
[1769853273823,1.76361217,2652.1,2651.2,12.76025464]
[1769853274935,0.94268476,2652.0,2651.2,12.76025464]
[1769853280067,0.94268476,2652.0,2651.2,12.74636843]
[1769853283261,13.9527531,2652.4,2651.2,13.68930881]
[1769853283463,13.9527531,2652.4,2651.4,13.35712205]
[1769853283660,15.85270867,2652.4,2651.5,13.35712205]
[1769853283866,13.9527531,2652.4,2651.5,13.35712205]
[1769853285780,0.94257813,2652.3,2651.5,13.35712205]
[1769853286881,0.001,2652.2,2651.5,13.35712205]
[1769853287646,0.001,2652.2,2651.5,14.29997304]
[1769853288476,0.001,2652.2,2651.5,13.35712205]
[1769853292285,0.001,2652.2,2651.5,13.34323584]
[1769853298294,0.001,2652.2,2651.4,0.94287612]
[1769853298295,13.9537531,2652.2,2651.4,0.94287612]
[1769853298670,13.9537531,2652.2,2651.3,14.30002895]
[1769853298671,0.001,2652.0,2651.3,14.30002895]
[1769853303520,0.33426724,2652.6,2651.4,13.35712205]
[1769853303815,13.9527531,2653.2,2652.0,5.69926514]
[1769853303816,14.89504702,2653.1,2652.0,5.69926514]
[1769853304021,15.09188325,2653.1,2652.1,0.79]
[1769853304327,13.9527531,2653.0,2652.1,0.79]
[1769853305724,13.9527531,2652.8,2652.1,0.79]
[1769853306016,13.9527531,2652.6,2652.1,0.79]
[1769853307321,0.94236495,2652.9,2652.1,14.78051256]
[1769853307616,0.94236495,2652.9,2652.1,15.72315031]
[1769853309923,3.76900455,2653.3,2652.1,15.72315031]
[1769853309927,13.52806754,2653.2,2652.1,15.72315031]
[1769853310596,13.52806754,2653.2,2652.3,13.99161256]
[1769853310822,14.97509303,2653.2,2652.3,13.99161256]
[1769853311503,14.97509303,2653.2,2652.3,0.0011]
[1769853311895,13.52806754,2653.0,2652.3,0.0011]
[1769853313218,0.94229392,2653.1,2652.3,13.99161256]
[1769853313418,14.47036146,2653.1,2652.3,13.99161256]
[1769853313618,16.81593529,2653.1,2652.3,0.0011]
[1769853317327,16.81593529,2653.1,2652.0,0.0011]
[1769853317328,13.52806754,2652.8,2652.0,0.0011]
[1769853318023,13.52806754,2652.6,2652.0,0.0011]
[1769853320708,14.47053989,2652.6,2652.0,0.0011]
[1769853320922,0.94241153,2652.8,2652.0,13.99161256]
[1769853321131,0.94241153,2652.8,2652.1,13.99051256]
[1769853321717,0.94237893,2652.9,2652.1,13.99051256]
[1769853323050,0.94232943,2653.0,2652.3,13.99161256]
[1769853323410,0.001,2652.6,2652.3,13.99161256]
[1769853323609,0.94232943,2653.0,2652.3,13.99161256]
[1769853323810,0.94232943,2653.0,2651.8,3.87]
[1769853323811,13.52806754,2652.5,2651.0,0.0011]
[1769853324108,13.63046754,2652.8,2651.5,13.99051256]
[1769853324948,13.63046754,2652.8,2651.5,14.93337348]
[1769853325239,0.942436,2652.7,2651.5,14.93337348]
[1769853325548,13.52806754,2652.6,2651.5,14.93337348]
[1769853325843,13.52806754,2652.6,2651.5,13.99051256]
[1769853326040,1.44705035,2652.5,2651.6,13.99051256]
[1769853327316,0.9425426,2652.4,2651.6,13.99051256]
[1769853331949,3.77017041,2652.5,2651.6,13.99051256]
[1769853332763,5.69926514,2652.1,2651.0,0.0011]
[1769853332967,13.52806754,2651.7,2650.3,0.94435592]
[1769853333260,13.52806754,2651.7,2650.4,18.81845345]
[1769853333437,13.52806754,2651.7,2650.4,19.76170675]
[1769853333638,13.52806754,2651.5,2650.6,0.01507841]
[1769853333844,1.92273327,2651.6,2650.6,14.00559097]
[1769853334040,0.94286253,2651.5,2650.7,18.80337504]
[1769853335266,0.94286253,2651.5,2650.7,4.81286248]
[1769853341274,14.25472569,2651.5,2650.7,4.81286248]
[1769853343267,14.25472569,2651.5,2650.8,13.28062891]
[1769853343453,0.94286253,2651.5,2650.8,13.28062891]
[1769853343655,0.94286253,2651.5,2650.9,4.81286248]
[1769853345260,0.94286253,2651.5,2651.0,13.28062891]
[1769853345576,0.94284299,2651.6,2651.0,13.28062891]
[1769853345773,0.94275586,2651.8,2651.1,4.81286248]
[1769853347781,14.25461902,2651.8,2651.1,4.81286248]
[1769853347987,0.001,2651.3,2651.1,4.81286248]
[1769853348359,0.001,2651.3,2651.1,19.02140765]
[1769853348654,0.94274594,2651.9,2651.2,13.28062891]
[1769853348854,14.2546091,2651.9,2651.2,18.09349139]
[1769853349284,0.94274594,2651.9,2651.3,13.2655505]
[1769853349852,13.31186316,2652.1,2651.3,13.2655505]
[1769853351990,0.94268476,2652.0,2651.4,4.81286248]
[1769853352558,0.94268476,2652.0,2651.3,13.2655505]
[1769853353983,0.94268476,2652.0,2651.4,4.81286248]
[1769853354282,0.94268476,2652.0,2651.5,13.2655505]
[1769853355376,14.25447683,2652.2,2651.5,13.2655505]
[1769853355576,14.25447683,2652.2,2651.6,4.81286248]
[1769853355777,16.61641131,2652.2,2651.3,18.07841298]
[1769853356757,16.61641131,2652.2,2651.3,4.81286248]
[1769853356959,16.61641131,2652.2,2651.4,13.2655505]
[1769853359602,3.30454815,2652.2,2651.4,13.2655505]
[1769853359893,0.94261367,2652.2,2651.5,4.81286248]
[1769853360259,0.001,2652.0,2651.5,4.81286248]
[1769853360460,0.001,2652.0,2651.6,13.2655505]
[1769853360893,0.001,2652.0,2651.7,4.82794089]
[1769853361900,0.001,2652.0,2651.7,4.81286248]
[1769853368496,13.9498957,2652.0,2651.2,0.01507841]
[1769853369162,13.9498957,2652.0,2651.2,0.95804252]
[1769853370691,0.94272031,2651.9,2651.2,13.93752996]
[1769853371978,0.001,2651.8,2651.2,13.93752996]
[1769853372912,0.001,2651.8,2651.4,0.01507841]
[1769853373717,0.001,2651.8,2651.5,4.81286248]
[1769853381717,0.001,2652.0,2651.5,4.81286248]
[1769853382497,13.9498957,2652.0,2651.5,4.81286248]
[1769853382826,13.9498957,2652.0,2651.2,13.93751088]
[1769853382999,13.9498957,2652.0,2651.4,0.01507841]
[1769853383202,0.001,2652.0,2651.4,0.01507841]
[1769853383718,0.001,2651.8,2651.4,0.01507841]
[1769853384518,0.001,2651.8,2651.4,12.99456585]
[1769853385321,0.001,2651.8,2651.4,12.97948744]
[1769853387917,0.001,2651.8,2651.5,4.81286248]
[1769853390623,0.001,2651.8,2651.5,4.82794089]
[1769853395015,0.001,2651.8,2651.7,0.0011]
[1769853396521,14.70472513,2652.2,2651.7,4.81396248]
[1769853396697,2.33230039,2652.2,2651.7,4.81396248]
[1769853399006,0.94263855,2652.2,2651.7,4.81396248]
[1769853404931,5.69893692,2652.7,2651.8,0.01507841]
[1769853404932,13.94918741,2652.5,2651.8,0.01507841]
[1769853405635,13.94918741,2652.5,2651.9,4.81286248]
[1769853405833,14.8889021,2652.5,2651.9,4.81286248]
[1769853408011,0.9425426,2652.4,2651.9,4.81396248]
[1769853410536,13.94918741,2652.3,2651.9,4.81396248]
[1769853412525,14.89179099,2652.3,2651.9,0.0011]
[1769853412727,14.89179099,2652.3,2652.0,4.81286248]
[1769853416324,0.94260358,2652.3,2652.0,4.81286248]
[1769853419856,3.7701715,2652.4,2652.1,0.0011]
[1769853424255,0.9425426,2652.4,2652.1,0.0011]
[1769853425947,0.9425426,2652.4,2652.2,4.81286248]
[1769853426146,0.9425426,2652.4,2652.1,0.0011]
[1769853426351,13.94918741,2652.7,2652.1,0.0011]
[1769853426551,15.88066963,2652.7,2652.1,0.0011]
[1769853427760,15.88066963,2652.7,2651.7,0.0011]
[1769853427761,13.28288605,2652.6,2651.7,0.0011]
[1769853427952,13.28288605,2652.3,2651.7,0.0011]
[1769853430536,13.28288605,2652.1,2651.7,0.0011]
[1769853430758,15.08248149,2652.1,2651.7,0.0011]
[1769853433236,0.94268476,2652.0,2651.7,0.0011]
[1769853433635,14.22557081,2652.0,2651.7,0.0011]
[1769853443773,14.22557081,2652.0,2651.9,0.0011]
[1769853443959,14.22557081,2652.0,2651.7,0.0011]
[1769853445849,0.94268476,2652.0,2651.7,0.0011]
[1769853447550,3.77071844,2652.1,2651.7,0.0011]
[1769853448460,5.44220081,2652.1,2651.7,0.0011]
[1769853448957,0.94255821,2652.4,2651.7,13.34381558]
[1769853449278,0.9435334,2652.5,2652.0,0.01507841]
[1769853449451,0.9435334,2652.5,2652.0,13.35779399]
[1769853449649,1.23968988,2653.0,2652.3,13.34271558]
[1769853450047,1.23967609,2653.0,2652.3,13.34271558]
[1769853451868,1.23967609,2653.0,2652.5,13.34271558]
[1769853452974,20.22149906,2653.0,2652.1,14.28534275]
[1769853453185,1.23967609,2653.0,2652.2,13.34271558]
[1769853456405,13.28388605,2652.8,2651.9,0.0011]
[1769853456693,13.1197954,2652.6,2651.9,0.0011]
[1769853457187,13.1207954,2652.8,2651.9,12.98226633]
[1769853458257,0.942436,2652.7,2651.9,12.98226633]
[1769853459100,0.94342492,2652.8,2652.1,12.98116633]
[1769853459293,0.94342492,2652.8,2652.0,0.01507841]
[1769853459457,0.94342492,2652.8,2651.9,0.94379591]
[1769853459657,0.94342492,2652.8,2652.0,13.49818198]
[1769853460360,0.001,2652.8,2652.3,13.01011721]
[1769853460667,0.001,2652.8,2652.5,13.01011721]
[1769853460982,0.001,2652.8,2652.6,0.38329883]
[1769853461208,0.94217067,2653.5,2652.8,13.01011721]
[1769853461859,0.94217067,2653.5,2652.9,0.01507841]
[1769853462258,0.94213358,2653.6,2652.9,0.01507841]
[1769853462485,0.94204536,2653.8,2653.2,0.01507841]
[1769853462785,0.94204536,2653.8,2653.1,13.01011721]
[1769853465491,3.76807405,2653.9,2653.1,13.01011721]
[1769853468196,0.001,2653.6,2653.1,13.01011721]
[1769853476287,0.001,2653.6,2652.9,13.01011721]
[1769853477512,13.34127805,2653.5,2652.6,13.01011721]
[1769853478077,13.34127805,2653.5,2652.4,17.82263921]
[1769853478480,13.34127805,2653.2,2652.1,13.01121721]
[1769853479183,13.34127805,2653.2,2652.1,13.95386322]
[1769853479590,13.34127805,2653.0,2652.2,0.9576853]
[1769853479792,0.94229392,2653.1,2652.4,0.01507841]
[1769853479990,14.28357197,2653.1,2652.4,0.01507841]
[1769853480191,3.31686507,2653.1,2652.4,13.01011721]
[1769853481703,16.65814312,2653.1,2652.3,0.0011]
[1769853482015,13.34127805,2652.9,2652.3,0.0011]
[1769853482930,13.34127805,2652.9,2652.1,0.0011]
[1769853483826,13.34127805,2652.7,2652.1,0.0011]
[1769853485932,0.94247153,2652.6,2652.1,0.0011]
[1769853486108,14.28374958,2652.6,2652.1,0.0011]
[1769853486308,16.08910488,2652.6,2652.1,0.0011]
[1769853489535,2.74782683,2652.6,2652.1,0.0011]
[1769853489734,0.94247153,2652.6,2652.1,0.01617841]
[1769853489910,0.94247153,2652.6,2652.1,0.0011]